Workbook

Sheet Dashboard
O3: 2018
O4: FEBRERO | MI4: Empresa - Sector | MJ4: Empresa - Sector
C5: Acumulado a: | D5: =O4 -> FEBRERO | G5: Datos acumulados | I5: Cuota Negocio / Total ASEMPLEO | L5: =empresa_ccaa!L5 -> iEMPRESA | N5: ¿▲"sin" mi Empresa? | MJ5: p.p.
C6: Total | D6: Facturación, € | F6: (a) | G6: =L5 -> iEMPRESA | K6: Cuota de Facturación | L6: ∆ | N6: (b) | O6: ∆ (a-b) | MJ6: Puntos porcentuales
D7: 2017 | E7: 2018 | F7: % i.a. | G7: =D7 -> 2017 | H7: =E7 -> 2018 | I7: % i.a. | J7: =G7 -> 2017 | K7: =H7 -> 2018 | L7: Dif.P.P. | N7: % i.a. | O7: Dif.P.P. | MI7: Dif. Ritmo | MJ7: Importancia Relativa | MM7: Empresa
C8: Nacional | D8: =empresa_ccaa!F12 -> 513947203.6 | E8: =empresa_ccaa!G12 -> 604036392.4 | F8: =((E8/D8)-1) -> 0.1752888003 | G8: =empresa_ccaa!K12 -> 0 | H8: =empresa_ccaa!L12 -> 0 | I8: =IF(G8>0,((H8/G8)-1),"n.a.") -> n.a. | J8: =G8/D8 -> 0 | K8: =H8/E8 -> 0 | L8: =(K8-J8)*100 -> 0 | N8: =((E8-H8)/(D8-G8))-1 -> 0.1752888003 | O8: =(F8-N8)*100 -> 0 | MI8: =IF(I8="n.a.","n.a.",(I8-F8)*100) -> n.a. | MJ8: =empresa_ccaa!M12-empresa_ccaa!H12 ->  | ML8: criterio_rank | MM8: peso | MN8: Comunidad | MO8: % i.a. | MP8: Total_Regional
C9: ANDALUCIA | D9: =empresa_ccaa!F13 -> 46198442.65 | E9: =empresa_ccaa!G13 -> 53565309.59 | F9: =((E9/D9)-1) -> 0.1594613696 | G9: =empresa_ccaa!K13 -> 0 | H9: =empresa_ccaa!L13 -> 0 | I9: n.a. | J9: 0 | K9: 0 | L9: =(K9-J9)*100 -> 0 | N9: =((E9-H9)/(D9-G9))-1 -> 0.1594613696 | O9: 0 | MI9: n.a. | MJ9: =empresa_ccaa!M13-empresa_ccaa!H13 ->  | ML9: =IF(MM9=$MM$27,1,0) -> 1 | MM9: =K9 -> 0 | MN9: =C9 -> ANDALUCIA | MO9: =I9 -> n.a. | MP9: =F9 -> 0.1594613696
C10: ARAGON | D10: =empresa_ccaa!F14 -> 27072518.97 | E10: =empresa_ccaa!G14 -> 31027028.12 | F10: =((E10/D10)-1) -> 0.1460709715 | G10: =empresa_ccaa!K14 -> 0 | H10: =empresa_ccaa!L14 -> 0 | I10: n.a. | J10: 0 | K10: 0 | L10: 0 | N10: 0.1460709715 | O10: 0 | MI10: n.a. | MJ10: =empresa_ccaa!M14-empresa_ccaa!H14 ->  | ML10: 1 | MM10: 0 | MN10: ARAGON | MO10: n.a. | MP10: 0.1460709715
C11: ASTURIAS | D11: =empresa_ccaa!F15 -> 9915573.564 | E11: =empresa_ccaa!G15 -> 12281317.78 | F11: 0.2385887408 | G11: =empresa_ccaa!K15 -> 0 | H11: =empresa_ccaa!L15 -> 0 | I11: n.a. | J11: 0 | K11: 0 | L11: 0 | N11: 0.2385887408 | O11: 0 | MI11: n.a. | MJ11: =empresa_ccaa!M15-empresa_ccaa!H15 ->  | ML11: 1 | MM11: 0 | MN11: ASTURIAS | MO11: n.a. | MP11: 0.2385887408
C12: BALEARES | D12: =empresa_ccaa!F16 -> 1661116.499 | E12: =empresa_ccaa!G16 -> 1833000.886 | F12: 0.1034752149 | G12: =empresa_ccaa!K16 -> 0 | H12: =empresa_ccaa!L16 -> 0 | I12: n.a. | J12: 0 | K12: 0 | L12: 0 | N12: 0.1034752149 | O12: 0 | MI12: n.a. | MJ12: =empresa_ccaa!M16-empresa_ccaa!H16 ->  | ML12: 1 | MM12: 0 | MN12: BALEARES | MO12: n.a. | MP12: 0.1034752149
C13: CANARIAS | D13: =empresa_ccaa!F17 -> 14112695.62 | E13: =empresa_ccaa!G17 -> 15144463.61 | F13: 0.07310920748 | G13: =empresa_ccaa!K17 -> 0 | H13: =empresa_ccaa!L17 -> 0 | I13: n.a. | J13: 0 | K13: 0 | L13: 0 | N13: 0.07310920748 | O13: 0 | MI13: n.a. | MJ13: =empresa_ccaa!M17-empresa_ccaa!H17 ->  | ML13: 1 | MM13: 0 | MN13: CANARIAS | MO13: n.a. | MP13: 0.07310920748
C14: CANTABRIA | D14: =empresa_ccaa!F18 -> 11215485.07 | E14: =empresa_ccaa!G18 -> 15130744.88 | F14: 0.3490941125 | G14: =empresa_ccaa!K18 -> 0 | H14: =empresa_ccaa!L18 -> 0 | I14: n.a. | J14: 0 | K14: 0 | L14: 0 | N14: 0.3490941125 | O14: 0 | MI14: n.a. | MJ14: =empresa_ccaa!M18-empresa_ccaa!H18 ->  | ML14: 1 | MM14: 0 | MN14: CANTABRIA | MO14: n.a. | MP14: 0.3490941125
C15: CASTILLA-LA MANCHA | D15: =empresa_ccaa!F19 -> 21820291.76 | E15: =empresa_ccaa!G19 -> 26893670.63 | F15: 0.23250738 | G15: =empresa_ccaa!K19 -> 0 | H15: =empresa_ccaa!L19 -> 0 | I15: n.a. | J15: 0 | K15: 0 | L15: 0 | N15: 0.23250738 | O15: 0 | MI15: n.a. | MJ15: =empresa_ccaa!M19-empresa_ccaa!H19 ->  | ML15: 1 | MM15: 0 | MN15: CASTILLA-LA MANCHA | MO15: n.a. | MP15: 0.23250738
C16: CASTILLA Y LEÓN | D16: =empresa_ccaa!F20 -> 34605797.1 | E16: =empresa_ccaa!G20 -> 40543959.03 | F16: 0.1715944273 | G16: =empresa_ccaa!K20 -> 0 | H16: =empresa_ccaa!L20 -> 0 | I16: n.a. | J16: 0 | K16: 0 | L16: =(K16-J16)*100 -> 0 | N16: 0.1715944273 | O16: 0 | MI16: n.a. | MJ16: =empresa_ccaa!M20-empresa_ccaa!H20 ->  | ML16: 1 | MM16: 0 | MN16: CASTILLA Y LEÓN | MO16: n.a. | MP16: 0.1715944273
C17: CATALUÑA | D17: =empresa_ccaa!F21 -> 125957443.5 | E17: =empresa_ccaa!G21 -> 157960177.3 | F17: 0.2540757647 | G17: =empresa_ccaa!K21 -> 0 | H17: =empresa_ccaa!L21 -> 0 | I17: =IF(G17>0,((H17/G17)-1),"n.a.") -> n.a. | J17: 0 | K17: 0 | L17: =(K17-J17)*100 -> 0 | N17: 0.2540757647 | O17: 0 | MI17: n.a. | MJ17: =empresa_ccaa!M21-empresa_ccaa!H21 ->  | ML17: 1 | MM17: 0 | MN17: CATALUÑA | MO17: n.a. | MP17: 0.2540757647
C18: COMUNIDAD VALENCIANA | D18: =empresa_ccaa!F22 -> 39761725.89 | E18: =empresa_ccaa!G22 -> 41793268.5 | F18: 0.05109291843 | G18: =empresa_ccaa!K22 -> 0 | H18: =empresa_ccaa!L22 -> 0 | I18: n.a. | J18: 0 | K18: 0 | L18: =(K18-J18)*100 -> 0 | N18: 0.05109291843 | O18: 0 | MI18: n.a. | MJ18: =empresa_ccaa!M22-empresa_ccaa!H22 ->  | ML18: 1 | MM18: 0 | MN18: COMUNIDAD VALENCIANA | MO18: n.a. | MP18: 0.05109291843
C19: EXTREMADURA | D19: =empresa_ccaa!F23 -> 2196644.351 | E19: =empresa_ccaa!G23 -> 3471905.584 | F19: 0.580549706 | G19: =empresa_ccaa!K23 -> 0 | H19: =empresa_ccaa!L23 -> 0 | I19: n.a. | J19: 0 | K19: 0 | L19: 0 | N19: 0.580549706 | O19: 0 | MI19: n.a. | MJ19: =empresa_ccaa!M23-empresa_ccaa!H23 ->  | ML19: 1 | MM19: 0 | MN19: EXTREMADURA | MO19: n.a. | MP19: 0.580549706
C20: GALICIA | D20: =empresa_ccaa!F24 -> 25612741.89 | E20: =empresa_ccaa!G24 -> 31982868.83 | F20: 0.2487092936 | G20: =empresa_ccaa!K24 -> 0 | H20: =empresa_ccaa!L24 -> 0 | I20: n.a. | J20: 0 | K20: 0 | L20: 0 | N20: 0.2487092936 | O20: 0 | MI20: n.a. | MJ20: =empresa_ccaa!M24-empresa_ccaa!H24 ->  | ML20: 1 | MM20: 0 | MN20: GALICIA | MO20: n.a. | MP20: 0.2487092936
C21: MADRID | D21: =empresa_ccaa!F25 -> 84465514.61 | E21: =empresa_ccaa!G25 -> 93498479.6 | F21: 0.1069426384 | G21: =empresa_ccaa!K25 -> 0 | H21: =empresa_ccaa!L25 -> 0 | I21: n.a. | J21: 0 | K21: 0 | L21: 0 | N21: 0.1069426384 | O21: 0 | MI21: n.a. | MJ21: =empresa_ccaa!M25-empresa_ccaa!H25 ->  | ML21: 1 | MM21: 0 | MN21: MADRID | MO21: n.a. | MP21: 0.1069426384
C22: MURCIA | D22: =empresa_ccaa!F26 -> 20416826.6 | E22: =empresa_ccaa!G26 -> 22977944.69 | F22: 0.1254415361 | G22: =empresa_ccaa!K26 -> 0 | H22: =empresa_ccaa!L26 -> 0 | I22: n.a. | J22: 0 | K22: 0 | L22: 0 | N22: 0.1254415361 | O22: 0 | MI22: n.a. | MJ22: =empresa_ccaa!M26-empresa_ccaa!H26 ->  | ML22: 1 | MM22: 0 | MN22: MURCIA | MO22: n.a. | MP22: 0.1254415361
C23: NAVARRA | D23: =empresa_ccaa!F27 -> 16721171.96 | E23: =empresa_ccaa!G27 -> 21894635.45 | F23: 0.3093959863 | G23: =empresa_ccaa!K27 -> 0 | H23: =empresa_ccaa!L27 -> 0 | I23: n.a. | J23: 0 | K23: 0 | L23: 0 | N23: 0.3093959863 | O23: 0 | MI23: n.a. | MJ23: =empresa_ccaa!M27-empresa_ccaa!H27 ->  | ML23: 1 | MM23: 0 | MN23: NAVARRA | MO23: n.a. | MP23: 0.3093959863
C24: PAIS VASCO | D24: =empresa_ccaa!F28 -> 27736766.16 | E24: =empresa_ccaa!G28 -> 29620806.91 | F24: 0.06792575366 | G24: =empresa_ccaa!K28 -> 0 | H24: =empresa_ccaa!L28 -> 0 | I24: n.a. | J24: 0 | K24: 0 | L24: 0 | N24: 0.06792575366 | O24: 0 | MI24: n.a. | MJ24: =empresa_ccaa!M28-empresa_ccaa!H28 ->  | ML24: 1 | MM24: 0 | MN24: PAIS VASCO | MO24: n.a. | MP24: 0.06792575366
C25: RIOJA (LA) | D25: =empresa_ccaa!F29 -> 4476447.421 | E25: =empresa_ccaa!G29 -> 4416810.972 | F25: -0.01332227177 | G25: =empresa_ccaa!K29 -> 0 | H25: =empresa_ccaa!L29 -> 0 | I25: n.a. | J25: 0 | K25: 0 | L25: 0 | N25: -0.01332227177 | O25: 0 | MI25: n.a. | MJ25: =empresa_ccaa!M29-empresa_ccaa!H29 ->  | ML25: 1 | MM25: 0 | MN25: RIOJA (LA) | MO25: n.a. | MP25: -0.01332227177
ML26: codifico=1 | MM26: máximo
ML27: =DMAX(ML8:MN25,MM8,ML8:ML25)*1 -> 0 | MM27: =MAX(MM9:MM25) -> 0
L28: =K6 -> Cuota de Facturación | MK28: geo data | ML28: =VLOOKUP(1,ML8:MP25,3,0) -> ANDALUCIA
O29: =K7 -> 2018 | ML29: el dato a buscar debe estar en la primera columna.
D30: % i.a. | H30: % i.a. | ML30: =VLOOKUP(1,ML8:MP25,4,0)*1 -> 
D31: 2017 | H31: 2017 | ML31: =VLOOKUP(1,ML8:MP25,5,0)*1 -> 0.1594613696
D32: Total | H32: Empresa | L32: =L5 -> iEMPRESA
O33: Ámbito
C34: Ámbito | D34: =H34 -> Nacional | H34: =L34 -> Nacional | L34: Nacional | O34: Nacional
L38: =ML28 -> ANDALUCIA | O38: CCAA
O39: Líder para la
D40: % i.a. | H40: % i.a. | O40: Empresa
D41: 2017 | H41: 2017
D42: Total | H42: Empresa | L42: =L32 -> iEMPRESA
C44: Ámbito | D44: =H44 -> ANDALUCIA | H44: =L44 -> ANDALUCIA | L44: =L38 -> ANDALUCIA
C48: Fuente: Cifras consolidadas del sector. Valores absolutos 2015-2018 y cifras de evolución de 2016 a la fecha. ASEMPLEO ©.
C49: Nota de Confidencialidad: Este informe comparativo contiene datos redondeados que son ficticeos y serán reemplazados por los que la Empresa introduzca en "empresa_ccaa".

Sheet Ayuda y Version (hidden)
G2: Versión de plantilla: | H2: 2.5

Sheet pBlock (hidden)
B4: Block Test
B5: Info1 | C5: Info2

Sheet pAccel0 (hidden)
A1: Gauge Configuration | O1: Gauge Configuration | Z1: Gauge Configuration | AK1: Gauge Configuration
F2: Decal | T2: Decal | AE2: Decal | AP2: Decal
A3: Title: | B3: =Dashboard!#REF! ->  | F3: 0 | O3: Title: | P3: =pAccel0!B3 ->  | T3: 0 | Z3: Title: | AA3: Empresa | AE3: 0 | AK3: Title: | AL3: CCAA | AP3: 0
A4: Real Value: | B4: =Dashboard!#REF! ->  | O4: Real Value: | P4: =Dashboard!K8 -> 0 | Z4: Real Value: | AA4: =Dashboard!K8 -> 0 | AK4: Real Value: | AL4: =Dashboard!ML27 -> 0
A6: Color bands | O6: Color bands | Z6: Color bands | AK6: Color bands
A7: Red: | B7: 2 | O7: Red: | P7: 2 | Z7: Red: | AA7: 2 | AK7: Red: | AL7: 2
A8: Yellow: | B8: 15 | O8: Yellow: | P8: 15 | Z8: Yellow: | AA8: 15 | AK8: Yellow: | AL8: 15
A9: Green: | B9: 23 | O9: Green: | P9: 23 | Z9: Green: | AA9: 23 | AK9: Green: | AL9: 23
A11: Advanced Parameters | O11: Advanced Parameters | Z11: Advanced Parameters | AK11: Advanced Parameters
B12: Value to 100% | C12: =IF(ISERROR((B4-F3/100)*B27),0,(B4-F3/100)*B27) -> 0 | P12: Value to 100% | Q12: =IF(ISERROR((P4-T3/100)*P27),0,(P4-T3/100)*P27) -> 0 | AA12: Value to 100% | AB12: =IF(ISERROR((AA4-AE3/100)*AA27),0,(AA4-AE3/100)*AA27) -> 0 | AL12: Value to 100% | AM12: =IF(ISERROR((AL4-AP3/100)*AL27),0,(AL4-AP3/100)*AL27) -> 0
B13: Relative value | C13: =IF(C12>100%,102%,IF(C12<0%,-2%,C12))*1.506-0.253 -> -0.253 | P13: Relative value | Q13: =IF(Q12>100%,102%,IF(Q12<0%,-2%,Q12))*1.506-0.253 -> -0.253 | AA13: Relative value | AB13: =IF(AB12>100%,102%,IF(AB12<0%,-2%,AB12))*1.506-0.253 -> -0.253 | AL13: Relative value | AM13: =IF(AM12>100%,102%,IF(AM12<0%,-2%,AM12))*1.506-0.253 -> -0.253
A15: Angle | C15: =C13*PI() -> -0.7948229414 | O15: Angle | Q15: =Q13*PI() -> -0.7948229414 | Z15: Angle | AB15: =AB13*PI() -> -0.7948229414 | AK15: Angle | AM15: =AM13*PI() -> -0.7948229414
A16: x | B16: 0 | C16: =-COS(C15) -> -0.7004111508 | O16: x | P16: 0 | Q16: =-COS(Q15) -> -0.7004111508 | Z16: x | AA16: 0 | AB16: =-COS(AB15) -> -0.7004111508 | AK16: x | AL16: 0 | AM16: =-COS(AM15) -> -0.7004111508
A17: y | B17: 0 | C17: =SIN(C15) -> -0.7137396023 | O17: y | P17: 0 | Q17: =SIN(Q15) -> -0.7137396023 | Z17: y | AA17: 0 | AB17: =SIN(AB15) -> -0.7137396023 | AK17: y | AL17: 0 | AM17: =SIN(AM15) -> -0.7137396023
D19: Value | E19: Label | R19: Value | S19: Label | AC19: Value | AD19: Label | AN19: Value | AO19: Label
C20: 70 | D20: 10 | E20: =B26+F3 -> 4 | Q20: 70 | R20: 10 | S20: =P26+T3 -> 4 | AB20: 70 | AC20: 10 | AD20: =AA26+AE3 -> 4 | AM20: 70 | AN20: 10 | AO20: =AL26+AP3 -> 4
C21: =B7*$C$20/$B$25 -> 3.5 | D21: 10 | E21: =E20+$B$26 -> 8 | Q21: =P7*$C$20/$B$25 -> 3.5 | R21: 10 | S21: =S20+$B$26 -> 8 | AB21: =AA7*$AB$20/$AA$25 -> 3.5 | AC21: 10 | AD21: =AD20+$AA$26 -> 8 | AM21: =AL7*$AM$20/$AL$25 -> 3.5 | AN21: 10 | AO21: =AO20+$AL$26 -> 8
C22: =B8*$C$20/$B$25 -> 26.25 | D22: 10 | E22: 12 | Q22: =P8*$C$20/$B$25 -> 26.25 | R22: 10 | S22: 12 | AB22: =AA8*$AB$20/$AA$25 -> 26.25 | AC22: 10 | AD22: 12 | AM22: =AL8*$AM$20/$AL$25 -> 26.25 | AN22: 10 | AO22: =AO21+$AL$26 -> 12
C23: =B9*$C$20/$B$25 -> 40.25 | D23: 10 | E23: 16 | Q23: =P9*$C$20/$B$25 -> 40.25 | R23: 10 | S23: 16 | AB23: =AA9*$AB$20/$AA$25 -> 40.25 | AC23: 10 | AD23: 16 | AM23: 40.25 | AN23: 10 | AO23: 16
A24: White | C24: 23 | D24: 10 | E24: 20 | O24: White | Q24: 23 | R24: 10 | S24: 20 | Z24: White | AB24: 23 | AC24: 10 | AD24: 20 | AK24: White | AM24: 23 | AN24: 10 | AO24: 20
A25: Total | B25: =SUM(B7:B24) -> 40 | C25: =SUM(C21:C24) -> 93 | D25: 10 | E25: 24 | O25: Total | P25: =SUM(P7:P24) -> 40 | Q25: =SUM(Q21:Q24) -> 93 | R25: 10 | S25: 24 | Z25: Total | AA25: =SUM(AA7:AA24) -> 40 | AB25: =SUM(AB21:AB24) -> 93 | AC25: 10 | AD25: 24 | AK25: Total | AL25: =SUM(AL7:AL24) -> 40 | AM25: =SUM(AM21:AM24) -> 93 | AN25: 10 | AO25: 24
A26: Increment | B26: =B25/10 -> 4 | D26: 10 | E26: 28 | O26: Increment | P26: =P25/10 -> 4 | R26: 10 | S26: 28 | Z26: Increment | AA26: =AA25/10 -> 4 | AC26: 10 | AD26: 28 | AK26: Increment | AL26: =AL25/10 -> 4 | AN26: 10 | AO26: 28
A27: Conversion | B27: =100/B25 -> 2.5 | D27: 10 | E27: 32 | O27: Conversion | P27: =100/P25 -> 2.5 | R27: 10 | S27: 32 | Z27: Conversion | AA27: =100/AA25 -> 2.5 | AC27: 10 | AD27: 32 | AK27: Conversion | AL27: =100/AL25 -> 2.5 | AN27: 10 | AO27: 32
D28: 10 | E28: 36 | R28: 10 | S28: 36 | AC28: 10 | AD28: 36 | AN28: 10 | AO28: 36
D29: 10 | E29: 40 | R29: 10 | S29: 40 | AC29: 10 | AD29: 40 | AN29: 10 | AO29: 40
D30: 33 | E30: =F3 -> 0 | R30: 33 | S30: =T3 -> 0 | AC30: 33 | AD30: =AE3 -> 0 | AN30: 33 | AO30: =AP3 -> 0

Sheet pAccel1 (hidden)
A1: Gauge Configuration | Q1: Gauge Configuration | X1: Gauge Configuration | AE1: Gauge Configuration | AL1: Gauge Configuration | AS1: Gauge Configuration | AZ1: Gauge Configuration | BG1: Gauge Configuration
F2: Decal | V2: Decal | AC2: Decal | AJ2: Decal | AQ2: Decal | AX2: Decal | BE2: Decal | BL2: Decal
A3: Title: | B3: CPDs | F3: 100 | Q3: Title: | R3: Facturación | V3: 100 | X3: Title: | Y3: CPDs | AC3: 100 | AE3: Title: | AF3: Facturación | AJ3: 100 | AL3: Title: | AM3: Facturación | AQ3: 100 | AS3: Title: | AT3: Facturación | AX3: 100 | AZ3: Title: | BA3: Facturación | BE3: 100 | BG3: Title: | BH3: Facturación | BL3: 100
A4: Real Value: | B4: =Dashboard!#REF! ->  | C4: =Dashboard!#REF! ->  | Q4: Real Value: | R4: =Dashboard!#REF! ->  | X4: Real Value: | Y4: =Dashboard!#REF! ->  | AE4: Real Value: | AF4: =Dashboard!#REF! ->  | AL4: Real Value: | AM4: =Dashboard!F8 -> 0.1752888003 | AS4: Real Value: | AT4: =Dashboard!$I$8 -> n.a. | AZ4: Real Value: | BA4: =Dashboard!ML31 -> 0.1594613696 | BG4: Real Value: | BH4: =Dashboard!ML30 -> 
A6: Color bands
A7: Red: | B7: -50
A8: Yellow: | B8: 0
A9: Green: | B9: 50
A11: Advanced Parameters | Q11: Advanced Parameters | X11: Advanced Parameters | AE11: Advanced Parameters | AL11: Advanced Parameters | AS11: Advanced Parameters | AZ11: Advanced Parameters | BG11: Advanced Parameters
B12: Value to 100% | C12: =IF(ISERROR((B4-F3/100)*B27),0,(B4-F3/100)*B27) -> 0 | E12: =IF(ISERROR((C4-F3/100)*B27),0,(C4-F3/100)*B27) -> 0 | R12: Value to 100% | S12: =IF(ISERROR((R4-V3/100)*R27),0,(R4-V3/100)*R27) -> 0 | Y12: Value to 100% | Z12: =IF(ISERROR((Y4-AC3/100)*Y27),0,(Y4-AC3/100)*Y27) -> 0 | AF12: Value to 100% | AG12: =IF(ISERROR((AF4-AJ3/100)*AF27),0,(AF4-AJ3/100)*AF27) -> 0 | AM12: Value to 100% | AN12: =IF(ISERROR((AM4-AQ3/100)*AM27),0,(AM4-AQ3/100)*AM27) -> -1.649422399 | AT12: Value to 100% | AU12: =IF(ISERROR((AT4-AX3/100)*AT27),0,(AT4-AX3/100)*AT27) -> 0 | BA12: Value to 100% | BB12: =IF(ISERROR((BA4-BE3/100)*BA27),0,(BA4-BE3/100)*BA27) -> -1.681077261 | BH12: Value to 100% | BI12: =IF(ISERROR((BH4-BL3/100)*BH27),0,(BH4-BL3/100)*BH27) -> 0
B13: Relative value | C13: =IF(B4<-100%,-100%,IF(B4>100%,100%,2*B4/1)) ->  | D13: ojo1, todo en porcentaje, por 2, y con 1 al final en lugar de 100. | E13: =IF(C4<-100%,-100%,IF(C4>100%,100%,2*C4/1)) ->  | I13: Todos los negritas tienen dato 50, en lugar de 100 para que la escala recorra menos. | R13: Relative value | S13: =IF(R4<-100%,-100%,IF(R4>100%,100%,2*R4/1)) ->  | Y13: Relative value | Z13: =IF(Y4<-100%,-100%,IF(Y4>100%,100%,2*Y4/1)) ->  | AF13: Relative value | AG13: =IF(AF4<-100%,-100%,IF(AF4>100%,100%,2*AF4/1)) ->  | AM13: Relative value | AN13: =IF(AM4<-100%,-100%,IF(AM4>100%,100%,2*AM4/1)) -> 0.3505776005 | AT13: Relative value | AU13: =IF(AT4<-100%,-100%,IF(AT4>100%,100%,2*AT4/1)) -> 1 | BA13: Relative value | BB13: =IF(BA4<-100%,-100%,IF(BA4>100%,100%,2*BA4/1)) -> 0.3189227392 | BH13: Relative value | BI13: =IF(BH4<-100%,-100%,IF(BH4>100%,100%,2*BH4/1)) -> 
A15: Angle | C15: =C13*PI()/2 ->  | E15: =E13*PI()/2 ->  | Q15: Angle | S15: =S13*PI()/2 ->  | X15: Angle | Z15: =Z13*PI()/2 ->  | AE15: Angle | AG15: =AG13*PI()/2 ->  | AL15: Angle | AN15: =AN13*PI()/2 -> 0.5506860072 | AS15: Angle | AU15: =AU13*PI()/2 -> 1.570796327 | AZ15: Angle | BB15: =BB13*PI()/2 -> 0.5009626673 | BG15: Angle | BI15: =BI13*PI()/2 -> 
A16: x | B16: 0 | C16: =SIN(C15) ->  | D16: =B16 -> 0 | E16: =SIN(E15) ->  | Q16: x | R16: 0 | S16: =SIN(S15) ->  | X16: x | Y16: 0 | Z16: =SIN(Z15) ->  | AE16: x | AF16: 0 | AG16: =SIN(AG15) ->  | AL16: x | AM16: 0 | AN16: =SIN(AN15) -> 0.5232719438 | AS16: x | AT16: 0 | AU16: =SIN(AU15) -> 1 | AZ16: x | BA16: 0 | BB16: =SIN(BB15) -> 0.4802701364 | BG16: x | BH16: 0 | BI16: =SIN(BI15) -> 
A17: y | B17: 0 | C17: =-COS(C15) ->  | D17: =B17 -> 0 | E17: =-COS(E15) ->  | Q17: y | R17: 0 | S17: =-COS(S15) ->  | X17: y | Y17: 0 | Z17: =-COS(Z15) ->  | AE17: y | AF17: 0 | AG17: =-COS(AG15) ->  | AL17: y | AM17: 0 | AN17: =-COS(AN15) -> -0.8521657543 | AS17: y | AT17: 0 | AU17: =-COS(AU15) -> -6.125742275e-17 | AZ17: y | BA17: 0 | BB17: =-COS(BB15) -> -0.877120628 | BG17: y | BH17: 0 | BI17: =-COS(BI15) -> 
D19: Value | E19: Label
C20: 50 | D20: 0 | E20: 50
C21: =E21 -> 40 | D21: =D31/D33 -> 5 | E21: =E20+$B$26 -> 40
C22: =E22 -> 30 | D22: =D21 -> 5 | E22: =E21+$B$26 -> 30
C23: 20 | D23: =D22 -> 5 | E23: 20
A24: White | C24: 10 | D24: 5 | E24: 10 | Q24: White | X24: White | AE24: White | AL24: White | AS24: White | AZ24: White | BG24: White
A25: Total | B25: 50 | C25: 0 | D25: 5 | E25: 0 | Q25: Total | R25: 50 | X25: Total | Y25: 50 | AE25: Total | AF25: 50 | AL25: Total | AM25: 50 | AS25: Total | AT25: 50 | AZ25: Total | BA25: 50 | BG25: Total | BH25: 50
A26: Increment | B26: -10 | C26: -10 | D26: 5 | E26: -10 | Q26: Increment | R26: -10 | X26: Increment | Y26: -10 | AE26: Increment | AF26: -10 | AL26: Increment | AM26: -10 | AS26: Increment | AT26: -10 | AZ26: Increment | BA26: -10 | BG26: Increment | BH26: -10
A27: Conversion | B27: =100/B25 -> 2 | C27: -20 | D27: 5 | E27: -20 | Q27: Conversion | R27: =100/R25 -> 2 | X27: Conversion | Y27: =100/Y25 -> 2 | AE27: Conversion | AF27: =100/AF25 -> 2 | AL27: Conversion | AM27: =100/AM25 -> 2 | AS27: Conversion | AT27: =100/AT25 -> 2 | AZ27: Conversion | BA27: =100/BA25 -> 2 | BG27: Conversion | BH27: =100/BH25 -> 2
C28: -30 | D28: 5 | E28: -30
C29: -40 | D29: 5 | E29: -40
C30: -50 | D30: 5 | E30: -50
D31: 50
D33: 10
D35: =SUM(D20:D30) -> 50

Sheet empresa_ccaa
M3: =Dashboard!O3 -> 2018
M4: =Dashboard!O4 -> FEBRERO
K5: Empresa | L5: =L9 -> iEMPRESA
C9: Facturación, € | F9: ASEMPLEO | G9: ASEMPLEO | K9: Empresa = | L9: iEMPRESA
C10: Dato acumulado a | E10: =M4 -> FEBRERO | F10: =Dashboard!D7 -> 2017 | G10: =Dashboard!E7 -> 2018 | J10: Facturación | K10: =F10 -> 2017 | L10: =G10 -> 2018
H11: Estructura (%) | J11: Datos acumulados | M11: Estructura (%) | N11: check
F12: =E135 -> 513947203.6 | G12: =B135 -> 604036392.4 | H12: =G12/G$12 -> 1 | I12: TOTAL | K12: =SUM(K13:K29) -> 0 | L12: =SUM(L13:L29) -> 0 | M12: =L12/L$12 ->  | N12: =L12/K12-1 -> 
F13: 46198442.65 | G13: 53565309.59 | H13: =G13/G$12 -> 0.0886789443 | I13: ANDALUCIA | M13: =L13/L$12 -> 
F14: 27072518.97 | G14: 31027028.12 | H14: =G14/G$12 -> 0.05136615692 | I14: ARAGON | M14: =L14/L$12 -> 
F15: 9915573.564 | G15: 12281317.78 | H15: 0.02033208252 | I15: ASTURIAS
F16: 1661116.499 | G16: 1833000.886 | H16: 0.003034586838 | I16: BALEARES
F17: 14112695.62 | G17: 15144463.61 | H17: 0.0250721046 | I17: CANARIAS
F18: 11215485.07 | G18: 15130744.88 | H18: 0.02504939284 | I18: CANTABRIA
F19: 21820291.76 | G19: 26893670.63 | H19: 0.04452326212 | I19: CASTILLA-LA MANCHA
F20: 34605797.1 | G20: 40543959.03 | H20: 0.06712171575 | I20: CASTILLA Y LEÓN
F21: 125957443.5 | G21: 157960177.3 | H21: 0.2615077159 | I21: CATALUÑA | M21: =L21/L$12 -> 
F22: 39761725.89 | G22: 41793268.5 | H22: 0.0691899843 | I22: COMUNIDAD VALENCIANA
F23: 2196644.351 | G23: 3471905.584 | H23: 0.005747841732 | I23: EXTREMADURA
F24: 25612741.89 | G24: 31982868.83 | H24: 0.05294857932 | I24: GALICIA
F25: 84465514.61 | G25: 93498479.6 | H25: 0.1547894809 | I25: MADRID
F26: 20416826.6 | G26: 22977944.69 | H26: 0.03804066275 | I26: MURCIA
F27: 16721171.96 | G27: 21894635.45 | H27: 0.03624721246 | I27: NAVARRA
F28: 27736766.16 | G28: 29620806.91 | H28: 0.04903811638 | I28: PAIS VASCO
F29: 4476447.421 | G29: 4416810.972 | H29: 0.007312160373 | I29: RIOJA (LA)
A31: Fuente: Cifras consolidadas del sector. ASEMPLEO ©.
A32: Nota de Confidencialidad: Este informe comparativo se genera con los datos propios de la Empresa.
A130: D03: | D130: D03: | G130: D03 : | H130: Variación Interanual (%)
A131: MES: | B131: ACUMULADO A LA FECHA | D131: =A131 -> MES: | E131: =B131 -> ACUMULADO A LA FECHA | G131: =D131 -> MES: | H131: Tasa % i.a.
B133: Facturación | E133: Facturación | H133: Facturación
I134: check
A135: TOTAL | B135: 604036392.4 | D135: TOTAL | E135: 513947203.6 | G135: TOTAL | H135: 0.1752888003 | I135: =B135/E135-1 -> 0.1752888003
A136: ANDALUCIA | B136: 53565309.59 | D136: ANDALUCIA | E136: 46198442.65 | G136: ANDALUCIA | H136: 0.1594613696 | I136: =B136/E136-1 -> 0.1594613696
A137: ARAGON | B137: 31027028.12 | D137: ARAGON | E137: 27072518.97 | G137: ARAGON | H137: 0.1460709715 | I137: 0.1460709715
A138: ASTURIAS | B138: 12281317.78 | D138: ASTURIAS | E138: 9915573.564 | G138: ASTURIAS | H138: 0.2385887408 | I138: 0.2385887408
A139: BALEARES | B139: 1833000.886 | D139: BALEARES | E139: 1661116.499 | G139: BALEARES | H139: 0.1034752149 | I139: 0.1034752149
A140: CANARIAS | B140: 15144463.61 | D140: CANARIAS | E140: 14112695.62 | G140: CANARIAS | H140: 0.07310920748 | I140: 0.07310920748
A141: CANTABRIA | B141: 15130744.88 | D141: CANTABRIA | E141: 11215485.07 | G141: CANTABRIA | H141: 0.3490941125 | I141: 0.3490941125
A142: CASTILLA-LA MANCHA | B142: 26893670.63 | D142: CASTILLA-LA MANCHA | E142: 21820291.76 | G142: CASTILLA-LA MANCHA | H142: 0.23250738 | I142: 0.23250738
A143: CASTILLA Y LEÓN | B143: 40543959.03 | D143: CASTILLA Y LEÓN | E143: 34605797.1 | G143: CASTILLA Y LEÓN | H143: 0.1715944273 | I143: 0.1715944273
A144: CATALUÑA | B144: 157960177.3 | D144: CATALUÑA | E144: 125957443.5 | G144: CATALUÑA | H144: 0.2540757647 | I144: 0.2540757647
A145: COMUNIDAD VALENCIANA | B145: 41793268.5 | D145: COMUNIDAD VALENCIANA | E145: 39761725.89 | G145: COMUNIDAD VALENCIANA | H145: 0.05109291843 | I145: 0.05109291843
A146: EXTREMADURA | B146: 3471905.584 | D146: EXTREMADURA | E146: 2196644.351 | G146: EXTREMADURA | H146: 0.580549706 | I146: 0.580549706
A147: GALICIA | B147: 31982868.83 | D147: GALICIA | E147: 25612741.89 | G147: GALICIA | H147: 0.2487092936 | I147: 0.2487092936
A148: MADRID | B148: 93498479.6 | D148: MADRID | E148: 84465514.61 | G148: MADRID | H148: 0.1069426384 | I148: 0.1069426384
A149: MURCIA | B149: 22977944.69 | D149: MURCIA | E149: 20416826.6 | G149: MURCIA | H149: 0.1254415361 | I149: 0.1254415361
A150: NAVARRA | B150: 21894635.45 | D150: NAVARRA | E150: 16721171.96 | G150: NAVARRA | H150: 0.3093959863 | I150: 0.3093959863
A151: PAIS VASCO | B151: 29620806.91 | D151: PAIS VASCO | E151: 27736766.16 | G151: PAIS VASCO | H151: 0.06792575366 | I151: 0.06792575366
A152: RIOJA (LA) | B152: 4416810.972 | D152: RIOJA (LA) | E152: 4476447.421 | G152: RIOJA (LA) | H152: -0.01332227177 | I152: -0.01332227177
A153: Ceuta y Melilla | D153: Ceuta y Melilla | G153: Ceuta y Melilla
